bitfinex/quotes_BTCUSD_20251201
["timestamp","ask_amount","ask_price","bid_price","bid_amount"]
[1764572497505,0.24355985,86361.0,86358.0,0.2315925]
[1764572497735,0.01197285,86361.0,86358.0,0.2315925]
[1764572498507,0.00039355,86361.0,86359.0,0.23158997]
[1764572499193,0.23159138,86359.0,86358.0,0.003]
[1764572499414,0.34847868,86359.0,86358.0,0.003]
[1764572499604,0.71654868,86359.0,86358.0,0.003]
[1764572499746,2.77907167,86359.0,86358.0,0.003]
[1764572499945,2.80405327,86359.0,86358.0,0.003]
[1764572500391,0.55461283,86351.0,86350.0,0.0004]
[1764572500594,0.68354199,86351.0,86350.0,0.0004]
[1764572500797,0.72129199,86351.0,86350.0,0.0004]
[1764572500995,0.62451283,86351.0,86350.0,0.0004]
[1764572501227,0.62451283,86351.0,86350.0,0.00138787]
[1764572501759,2.62451283,86351.0,86350.0,0.00138787]
[1764572502005,2.62451283,86351.0,86350.0,0.00238787]
[1764572502208,0.01158319,86332.0,86329.0,0.01547787]
[1764572502466,0.23166917,86330.0,86329.0,0.01547787]
[1764572502654,0.23166917,86330.0,86320.0,0.0004]
[1764572502655,0.23169333,86321.0,86320.0,0.0004]
[1764572502948,0.24326847,86325.0,86320.0,0.0119848]
[1764572503083,0.24326847,86325.0,86322.0,0.01158453]
[1764572503283,0.01158386,86327.0,86323.0,0.24327218]
[1764572503493,0.323,86329.0,86326.0,0.24326272]
[1764572503685,0.323,86329.0,86326.0,0.01158399]
[1764572504084,0.323,86329.0,86326.0,0.24326279]
[1764572504298,0.323,86329.0,86327.0,0.23167714]
[1764572505224,0.323,86329.0,86326.0,0.01258399]
[1764572505225,0.5546728,86329.0,86326.0,0.24326277]
[1764572505428,0.33458359,86329.0,86325.0,0.01158412]
[1764572505650,0.23166308,86333.0,86325.0,0.01158412]
[1764572505651,0.01158184,86342.0,86335.0,0.23165534]
[1764572505887,0.23164264,86340.0,86336.0,0.24323572]
[1764572506384,0.24322475,86340.0,86336.0,0.24323572]
[1764572506754,0.01158198,86341.0,86338.0,0.01158238]
[1764572506755,0.24322426,86341.0,86338.0,0.01158238]
[1764572507070,0.23164346,86340.0,86338.0,0.01158238]
[1764572507584,0.23364346,86340.0,86337.0,0.23165033]
[1764572507995,0.23264346,86340.0,86337.0,0.23165033]
[1764572508190,0.23264346,86340.0,86339.0,0.00035065]
[1764572508389,0.23364346,86340.0,86339.0,0.00035065]
[1764572508871,0.23264346,86340.0,86339.0,0.00035065]
[1764572509073,0.23264234,86340.0,86339.0,0.00035065]
[1764572509277,0.23364234,86340.0,86339.0,0.00035065]
[1764572509478,0.23264234,86340.0,86339.0,0.00035065]
[1764572509675,0.23164234,86340.0,86339.0,0.00035065]
[1764572509877,0.23264234,86340.0,86339.0,0.00035065]
[1764572510076,0.001,86340.0,86339.0,0.23199567]
[1764572510498,0.002,86340.0,86339.0,0.23199567]
[1764572511325,0.001,86340.0,86339.0,0.00035065]
[1764572511645,0.55463987,86341.0,86339.0,0.00135065]
[1764572511797,0.23164234,86340.0,86339.0,0.001]
[1764572511983,0.0234,86340.0,86339.0,0.001]
[1764572512190,0.55463987,86341.0,86339.0,0.001]
[1764572512386,0.24321904,86342.0,86339.0,0.001]
[1764572512587,0.323,86341.0,86339.0,0.00813]
[1764572512814,0.323,86341.0,86339.0,0.23877491]
[1764572513040,0.323,86341.0,86340.0,0.23164234]
[1764572513607,0.01158184,86342.0,86339.0,0.01971225]
[1764572513812,0.01158171,86343.0,86339.0,0.00813]
[1764572514030,0.55463767,86342.0,86339.0,0.00713]
[1764572514241,0.55463767,86342.0,86340.0,0.001]
[1764572514242,0.55464192,86341.0,86340.0,0.001]
[1764572514414,0.323,86341.0,86340.0,0.001]
[1764572514627,0.323,86341.0,86339.0,0.00713]
[1764572514832,0.323,86341.0,86339.0,0.23877273]
[1764572515053,0.323,86341.0,86339.0,0.00713]
[1764572515430,0.29983577,86341.0,86339.0,0.00713]
[1764572515653,0.24321906,86342.0,86339.0,0.23877255]
[1764572516049,0.01158184,86342.0,86339.0,0.23877255]
[1764572516224,0.2432211,86342.0,86339.0,0.23877255]
[1764572516591,0.23163966,86341.0,86340.0,0.001]
[1764572516735,0.23163966,86341.0,86339.0,0.00713]
[1764572517159,0.23163966,86341.0,86340.0,0.00031876]
[1764572517620,0.23163966,86341.0,86340.0,0.00131876]
[1764572518223,0.25503966,86341.0,86340.0,0.00131876]
[1764572519310,0.29008966,86341.0,86340.0,0.00131876]
[1764572522410,0.29008966,86341.0,86340.0,0.00031876]
[1764572522822,0.29008966,86341.0,86340.0,0.00231876]
[1764572524863,0.23163966,86341.0,86340.0,0.00231876]
[1764572525872,0.26105103,86343.0,86340.0,0.00231876]
[1764572526097,0.23163893,86342.0,86340.0,0.002]
[1764572526245,0.23163966,86341.0,86340.0,0.002]
[1764572527069,0.26105103,86343.0,86340.0,0.002]
[1764572527630,0.23163775,86342.0,86340.0,0.002]
[1764572528031,0.23163758,86342.0,86340.0,0.002]
[1764572528452,0.01783,86343.0,86341.0,0.23163966]
[1764572528667,0.0178,86359.0,86350.0,0.01158077]
[1764572528862,0.05441221,86367.0,86358.0,0.01614]
[1764572529188,0.01157889,86364.0,86360.0,0.23158628]
[1764572529379,0.24316662,86361.0,86357.0,0.23159552]
[1764572529618,0.24316662,86361.0,86356.0,0.23159861]
[1764572529818,0.01157943,86360.0,86356.0,0.01157997]
[1764572530026,0.00039355,86361.0,86358.0,0.0115797]
[1764572530383,0.00039355,86361.0,86360.0,0.23158869]
[1764572531374,0.00039355,86361.0,86360.0,0.29165869]
[1764572533112,0.00039355,86361.0,86360.0,0.29365869]
[1764572533930,0.00039355,86361.0,86360.0,0.29165869]
[1764572534130,0.00039355,86361.0,86360.0,0.29265869]
[1764572534353,0.00039355,86361.0,86360.0,0.29665869]
[1764572534496,0.00039355,86361.0,86360.0,0.23658869]
[1764572538842,0.06554355,86361.0,86360.0,0.005]
[1764572539154,0.00039355,86361.0,86360.0,0.23658869]
[1764572539936,0.00039355,86361.0,86360.0,0.30191869]
[1764572540168,0.00039355,86361.0,86360.0,0.26193869]
[1764572542087,0.00039355,86361.0,86360.0,0.23658869]
[1764572542480,0.00039355,86361.0,86360.0,0.30191869]
[1764572543766,0.00039355,86361.0,86360.0,0.26193869]
[1764572544759,0.00039355,86361.0,86360.0,0.23658869]
[1764572545408,0.00039355,86361.0,86360.0,0.26193869]
[1764572545720,0.00039355,86361.0,86360.0,0.30191869]
[1764572545892,0.00039355,86361.0,86360.0,0.26193869]
[1764572546295,0.00039355,86361.0,86360.0,0.23658869]
[1764572547567,0.00039355,86361.0,86360.0,0.25170869]
[1764572548846,0.00039355,86361.0,86360.0,0.31703869]
[1764572549283,0.01157822,86369.0,86365.0,0.24315393]
[1764572549518,0.24314687,86368.0,86365.0,0.0001183]
[1764572549741,0.24314687,86368.0,86365.0,0.2316929]
[1764572549936,0.24314687,86368.0,86365.0,0.24327166]
[1764572550238,0.24314687,86368.0,86366.0,0.23157217]
[1764572550401,0.28168232,86370.0,86367.0,0.24314841]
[1764572550402,0.03854,86370.0,86367.0,0.24314841]
[1764572550603,0.27010225,86370.0,86367.0,0.24314841]
[1764572550799,0.23156503,86369.0,86367.0,0.01157849]
[1764572551521,0.28168034,86370.0,86367.0,0.24314656]
[1764572552486,0.2315648,86369.0,86367.0,0.002]
[1764572552747,0.23156724,86368.0,86367.0,0.002]
[1764572553336,0.23156724,86368.0,86365.0,0.24327217]
[1764572553493,0.23156724,86368.0,86366.0,0.2315723]
[1764572553688,0.323,86385.0,86367.0,0.05122849]
[1764572553894,0.00732,86376.0,86374.0,0.24782082]
[1764572554137,0.56611953,86378.0,86374.0,0.24782082]
[1764572554138,0.02940621,86384.0,86380.0,0.23153472]
[1764572554313,0.01157527,86391.0,86386.0,0.01157594]
[1764572554510,0.03212501,86393.0,86389.0,0.01157554]
[1764572554796,0.23149911,86394.0,86390.0,0.01157541]
[1764572554797,0.24307306,86394.0,86390.0,0.01157541]
[1764572554997,0.24307306,86394.0,86389.0,0.01157554]
[1764572555260,0.24304826,86403.0,86395.0,0.01157474]
[1764572555454,0.01157327,86406.0,86399.0,0.0115742]
[1764572555651,0.0115734,86405.0,86400.0,0.01157407]
[1764572555854,0.25052347,86407.0,86402.0,0.24304986]
[1764572556155,0.011573,86408.0,86403.0,0.01157367]
[1764572556350,0.24303594,86407.0,86403.0,0.01157367]
[1764572556589,0.01157313,86407.0,86403.0,0.01157367]
[1764572556768,0.24303336,86408.0,86403.0,0.24304692]
[1764572557173,0.01157286,86409.0,86404.0,0.24304411]
[1764572557401,0.00265239,86418.0,86416.0,0.23143752]
[1764572558073,0.00265239,86418.0,86413.0,0.2314456]
[1764572558277,0.00265239,86418.0,86413.0,0.23144641]
[1764572558461,0.01906,86417.0,86413.0,0.24301874]
[1764572558665,0.01906,86417.0,86414.0,0.01157219]
[1764572558862,0.01906,86417.0,86416.0,0.003]
[1764572559291,0.01906,86417.0,86414.0,0.01157219]
[1764572560108,0.01906,86417.0,86416.0,0.004]
[1764572561419,0.03063179,86417.0,86405.0,0.23146696]
[1764572561619,0.26206831,86417.0,86412.0,0.01157246]
[1764572561824,0.26206831,86417.0,86414.0,0.003]
[1764572562024,0.26206831,86417.0,86412.0,0.01157246]
[1764572562337,0.26206831,86417.0,86380.0,1.52023778]
[1764572562338,0.2314496,86412.0,86403.0,0.01157367]
[1764572562486,0.02055,86407.0,86402.0,0.00732]
[1764572562678,0.26358604,86407.0,86402.0,0.00732]
[1764572562884,0.03212313,86407.0,86403.0,0.24304641]
[1764572563200,0.02055,86407.0,86404.0,0.24304417]
[1764572563598,0.02055,86407.0,86405.0,0.23146763]
[1764572563803,0.25201403,86407.0,86402.0,0.25036935]
[1764572564007,0.02686,86403.0,86402.0,0.00732]
[1764572564418,0.0115734,86405.0,86402.0,0.0188938]
[1764572564623,0.23146783,86406.0,86402.0,0.0188938]
[1764572565058,0.23146783,86406.0,86402.0,0.0238938]
[1764572565259,0.2430411,86406.0,86403.0,0.001]
[1764572565473,0.27211808,86405.0,86403.0,0.001]
[1764572565644,0.27211808,86405.0,86401.0,0.24305263]
[1764572565843,0.23146808,86405.0,86402.0,0.004]
[1764572566011,0.23146808,86405.0,86402.0,0.005]
[1764572566212,0.24304148,86405.0,86402.0,0.001]
[1764572566407,0.24304148,86405.0,86403.0,0.004]
[1764572566862,0.27073076,86404.0,86403.0,0.004]
[1764572567066,0.29840076,86404.0,86403.0,0.004]
[1764572567681,0.23147612,86402.0,86401.0,0.001]
[1764572567829,0.25914612,86402.0,86401.0,0.001]
[1764572568030,0.29840612,86402.0,86401.0,0.001]
[1764572568333,0.30997992,86402.0,86399.0,0.0115742]
[1764572568525,0.02767,86402.0,86401.0,0.2314788]
[1764572568775,0.01157327,86406.0,86403.0,0.23147316]
[1764572568943,0.01157327,86406.0,86404.0,0.2314707]
[1764572569267,0.24303929,86406.0,86402.0,0.24304992]
[1764572569464,0.24303929,86406.0,86403.0,0.23147106]
[1764572569666,0.02055,86407.0,86404.0,0.01157353]
[1764572569982,0.23146562,86406.0,86402.0,0.0115738]
[1764572570184,0.23146853,86405.0,86402.0,0.0115738]
[1764572570478,0.0115734,86405.0,86402.0,0.23147456]
[1764572570688,0.24303868,86406.0,86402.0,0.24304751]
[1764572571030,0.23147044,86405.0,86402.0,0.0115738]
[1764572571232,0.01157353,86404.0,86401.0,0.02149]
[1764572571612,0.01157353,86404.0,86401.0,0.26454186]
[1764572571748,0.24304398,86406.0,86402.0,0.0115738]
[1764572571935,0.24304398,86406.0,86402.0,0.2440474]
[1764572572282,0.01157327,86406.0,86403.0,0.24304605]
[1764572572485,0.2430453,86404.0,86401.0,0.02349]
[1764572572866,0.2430453,86404.0,86401.0,0.02149]
[1764572573393,0.2430453,86404.0,86401.0,0.25296809]
[1764572573637,0.23146866,86405.0,86401.0,0.26454265]
[1764572573846,0.01157407,86400.0,86395.0,0.01157474]
[1764572574050,0.03963,86394.0,86391.0,0.01157527]
[1764572574174,0.03963,86394.0,86392.0,0.23150056]
[1764572574380,0.01196,86394.0,86393.0,0.23150023]
[1764572574574,0.01196,86394.0,86392.0,0.23150056]
[1764572574780,0.23146823,86405.0,86396.0,0.0115746]
[1764572574781,0.25501302,86401.0,86396.0,0.0115746]
[1764572575076,0.25501321,86401.0,86397.0,0.24306258]
[1764572575282,0.23148164,86400.0,86397.0,0.24306258]
[1764572577801,0.23148164,86400.0,86397.0,0.24506258]
[1764572578215,0.01157353,86404.0,86397.0,0.24506258]
[1764572578216,0.56602464,86411.0,86405.0,0.2430394]
[1764572578410,0.24301068,86416.0,86410.0,0.23145412]
[1764572578613,0.323,86417.0,86413.0,0.01157233]
[1764572578829,0.323,86417.0,86414.0,0.01157219]
[1764572579028,0.24565841,86418.0,86414.0,0.01157219]
[1764572579029,0.00265239,86418.0,86416.0,0.23143796]
[1764572579366,0.00265239,86418.0,86417.0,0.25929594]
[1764572580358,0.00265239,86418.0,86416.0,0.23143796]
[1764572580359,0.00265239,86418.0,86416.0,0.23143839]
[1764572580568,0.00265239,86418.0,86417.0,0.23143594]
[1764572581632,0.00265239,86418.0,86416.0,0.23443839]
[1764572581832,0.00265239,86418.0,86417.0,0.001]
[1764572582282,0.00265239,86418.0,86417.0,0.004]
[1764572582468,0.00265239,86418.0,86417.0,0.003]
[1764572582631,0.30101565,86418.0,86417.0,0.003]
[1764572582810,0.31258731,86418.0,86413.0,0.01157233]
[1764572583011,0.23144891,86413.0,86407.0,0.01889313]
[1764572583226,0.01157286,86409.0,86401.0,0.01157394]
[1764572583446,0.24302981,86410.0,86404.0,0.24304389]
[1764572583622,0.23146721,86406.0,86403.0,0.2430446]
[1764572583828,0.23146721,86406.0,86403.0,0.01157367]
[1764572584029,0.031453,86408.0,86405.0,0.24304148]
[1764572584388,0.031453,86408.0,86406.0,0.23146531]
[1764572584389,0.01988,86408.0,86406.0,0.23146531]
[1764572584712,0.01988,86408.0,86407.0,0.23146272]
[1764572585825,0.01988,86408.0,86406.0,0.23246531]
[1764572586233,0.01988,86408.0,86407.0,0.005]
[1764572586436,0.01988,86408.0,86407.0,0.23646272]
[1764572586888,0.01988,86408.0,86407.0,0.005]
[1764572587278,0.01988,86408.0,86407.0,0.006]
[1764572588099,0.0629091,86410.0,86407.0,0.006]
[1764572588305,0.0629091,86410.0,86407.0,0.23746157]
[1764572588500,0.0629091,86410.0,86407.0,0.006]
[1764572588713,0.07448183,86410.0,86407.0,0.006]
[1764572588896,0.24303235,86409.0,86405.0,0.24304141]
[1764572589202,0.2430333,86408.0,86404.0,0.24304426]
[1764572589408,0.2430333,86408.0,86407.0,0.004]
[1764572590213,0.2430333,86408.0,86407.0,0.005]
[1764572590538,0.23146361,86407.0,86404.0,0.24304389]
[1764572590901,0.23146608,86406.0,86404.0,0.005]
[1764572591100,0.23148037,86401.0,86398.0,0.01157434]
[1764572591306,0.23148037,86401.0,86397.0,0.01157447]
[1764572591942,0.23148372,86400.0,86396.0,0.23881203]
[1764572592087,0.23148372,86400.0,86389.0,0.02136]
[1764572592088,0.24306962,86395.0,86389.0,0.02136]
[1764572592350,0.27905827,86390.0,86389.0,0.0001183]
[1764572592544,0.60205827,86390.0,86389.0,0.0001183]
[1764572592841,0.64131827,86390.0,86389.0,0.0001183]
[1764572595277,0.23152759,86383.0,86380.0,0.23153275]
[1764572595427,0.23164561,86383.0,86380.0,0.23153504]
[1764572595936,0.23164561,86383.0,86382.0,0.25938971]
[1764572595937,0.00011802,86383.0,86382.0,0.25938971]
[1764572596326,0.00011802,86383.0,86382.0,0.29942971]
[1764572596974,0.00011802,86383.0,86382.0,0.02786]
[1764572597194,0.00011802,86383.0,86381.0,0.23153178]
[1764572597383,0.00011802,86383.0,86382.0,0.001]
[1764572597549,0.00011802,86383.0,86382.0,0.23252971]
[1764572597763,0.00011802,86383.0,86382.0,0.30576971]
[1764572597960,0.00011802,86383.0,86382.0,0.30176971]
[1764572600077,0.00011802,86383.0,86382.0,0.30576971]
[1764572600839,0.00011802,86383.0,86382.0,0.26343971]
[1764572601513,0.00011802,86383.0,86382.0,0.004]
[1764572601714,0.23164505,86383.0,86382.0,0.004]
[1764572602215,0.25885505,86383.0,86382.0,0.004]
[1764572602416,0.29867505,86383.0,86382.0,0.004]
[1764572603333,0.02732802,86383.0,86382.0,0.004]
[1764572603642,0.00011802,86383.0,86382.0,0.004]
[1764572604205,0.23164505,86383.0,86382.0,0.004]
[1764572604852,0.00011802,86383.0,86382.0,0.004]
[1764572605070,0.00011802,86383.0,86382.0,0.30550971]
[1764572605273,0.00011802,86383.0,86382.0,0.26317971]
[1764572605625,0.00011802,86383.0,86382.0,0.00374]
[1764572605825,0.67030612,86383.0,86382.0,0.00374]
[1764572606251,0.62167505,86383.0,86382.0,0.00374]
[1764572606873,0.62167505,86383.0,86382.0,0.00274]
[1764572607426,0.23157797,86364.0,86360.0,0.23158773]
[1764572608019,0.23157797,86364.0,86361.0,0.23158547]
[1764572608179,0.24315686,86364.0,86361.0,0.23158547]
[1764572608379,0.24675333,86362.0,86359.0,0.01157956]
[1764572608580,0.24675333,86362.0,86357.0,0.24317563]
[1764572608581,0.02721,86360.0,86357.0,0.01157983]
[1764572608766,0.24316627,86361.0,86357.0,0.24317405]
[1764572609171,0.02674916,86362.0,86358.0,0.0115797]
[1764572609405,0.02674916,86362.0,86359.0,0.24316852]
[1764572609609,0.24675347,86362.0,86360.0,0.23158867]
[1764572609809,0.25833263,86362.0,86359.0,0.23259117]
[1764572610008,0.2431668,86361.0,86357.0,0.01157983]
[1764572610226,0.2431668,86361.0,86360.0,0.004]
[1764572610425,0.2315905,86360.0,86358.0,0.001]
[1764572610640,0.30605799,86359.0,86358.0,0.001]
[1764572610786,0.69522799,86359.0,86358.0,0.001]
[1764572611224,0.38917,86359.0,86358.0,0.001]
[1764572611452,0.33457903,86363.0,86360.0,0.005]
[1764572611629,0.24316408,86362.0,86355.0,0.0115801]
[1764572611945,0.35563903,86363.0,86358.0,0.0125797]
[1764572612154,0.23159138,86359.0,86358.0,0.001]
[1764572612308,0.58149138,86359.0,86358.0,0.001]
[1764572612509,0.62076138,86359.0,86358.0,0.001]
[1764572613101,0.62076138,86359.0,86342.0,0.00025501]
[1764572613102,0.23163429,86343.0,86342.0,0.00025501]
[1764572613298,0.24320521,86347.0,86343.0,0.23163301]
[1764572613501,0.24320521,86347.0,86342.0,0.24347187]
[1764572614047,0.23162643,86346.0,86343.0,0.23163166]
[1764572614255,0.23162643,86346.0,86343.0,0.23202521]
[1764572614458,0.23162938,86345.0,86343.0,0.00039355]
[1764572614608,0.02106,86349.0,86343.0,0.00039355]
[1764572614805,0.23162361,86347.0,86343.0,0.23202536]
[1764572615054,0.01158104,86348.0,86344.0,0.24321295]
[1764572615454,0.24320315,86348.0,86345.0,0.23162829]
[1764572616006,0.2316214,86348.0,86345.0,0.2432084]
[1764572616229,0.2316214,86348.0,86344.0,0.24321293]
[1764572616436,0.24319917,86349.0,86345.0,0.24321002]
[1764572616566,0.24319917,86349.0,86345.0,0.24421002]
[1764572616783,0.24319917,86349.0,86346.0,0.23162597]
[1764572617013,0.24319371,86351.0,86347.0,0.2316224]
[1764572617237,0.23892816,86353.0,86348.0,0.23162048]
[1764572617451,0.323,86353.0,86349.0,0.01158091]
[1764572617795,0.323,86353.0,86350.0,0.24319625]
[1764572618047,0.56616855,86360.0,86356.0,0.23159907]
[1764572618354,0.56616855,86360.0,86354.0,0.01158023]
[1764572618355,0.323,86358.0,86355.0,0.0115801]
[1764572618510,0.01985,86368.0,86362.0,0.01157916]
[1764572618720,0.05084715,86377.0,86367.0,0.01157849]
[1764572618920,0.25042385,86383.0,86375.0,0.23154848]
[1764572619124,0.23153893,86379.0,86375.0,0.23154848]
[1764572619343,0.02106,86380.0,86375.0,0.01157742]
[1764572619666,0.02106,86380.0,86376.0,0.01157728]
[1764572619848,0.26417251,86380.0,86376.0,0.24312048]
[1764572620027,0.26429051,86380.0,86377.0,0.24311942]
[1764572620227,0.03275475,86380.0,86378.0,0.23153999]
[1764572620443,0.08668389,86381.0,86378.0,0.23153999]
[1764572620863,0.08668389,86381.0,86378.0,0.24311701]
[1764572621018,0.01157661,86381.0,86378.0,0.24311701]
[1764572621431,0.24310903,86381.0,86378.0,0.24311701]
[1764572621637,0.01157661,86381.0,86378.0,0.24511701]
[1764572621835,0.00732,86383.0,86380.0,0.01157675]
[1764572622065,0.00732,86383.0,86381.0,0.23153239]
[1764572622478,0.00732,86383.0,86380.0,0.24311102]
[1764572622663,0.33032,86383.0,86380.0,0.24311102]
[1764572622811,0.33032,86383.0,86381.0,0.23153186]
[1764572623217,0.33032,86383.0,86381.0,0.23353186]
[1764572623415,0.33032,86383.0,86381.0,0.002]
[1764572623616,0.0269,86382.0,86381.0,0.002]
[1764572624227,0.25842971,86382.0,86381.0,0.002]
[1764572624431,0.0269,86382.0,86379.0,0.24311221]
[1764572624641,0.0269,86382.0,86380.0,0.23153497]
[1764572624845,0.0269,86382.0,86381.0,0.002]
[1764572625690,0.0269,86382.0,86381.0,0.23353239]
[1764572626066,0.33032,86383.0,86381.0,0.23353239]
[1764572626668,0.33032,86383.0,86382.0,0.23152971]
[1764572627183,0.00732,86383.0,86382.0,0.23152971]
[1764572627765,0.323,86390.0,86388.0,0.231512]
[1764572627974,0.01157554,86389.0,86385.0,0.23151674]
[1764572628191,0.24308933,86388.0,86384.0,0.24309826]
[1764572628414,0.24308933,86388.0,86385.0,0.23152096]
[1764572628601,0.01157568,86388.0,86386.0,0.23151843]
[1764572628801,0.02106,86392.0,86390.0,0.23150802]
[1764572629003,0.25256389,86392.0,86389.0,0.24308645]
[1764572629208,0.323,86391.0,86389.0,0.24308645]
[1764572629408,0.01157541,86390.0,86387.0,0.24309023]
[1764572629652,0.323,86391.0,86387.0,0.24309023]
[1764572629796,0.56608274,86391.0,86387.0,0.24309023]
[1764572630443,0.56608274,86391.0,86388.0,0.23151357]
[1764572630846,0.23151416,86388.0,86386.0,0.2315175]
[1764572631213,0.27259889,86389.0,86385.0,0.24309748]
[1764572631415,0.23151433,86388.0,86385.0,0.24309748]
[1764572632837,0.23151433,86388.0,86386.0,0.23151814]
[1764572633047,0.24308691,86389.0,86386.0,0.23151814]
[1764572633469,0.01157568,86388.0,86385.0,0.001]
[1764572633683,0.26102899,86386.0,86385.0,0.001]
[1764572633860,0.24310293,86384.0,86381.0,0.23153129]
[1764572634073,0.04157,86385.0,86383.0,0.23152703]
[1764572634305,0.23151658,86387.0,86384.0,0.24310056]
[1764572634775,0.23151658,86387.0,86385.0,0.001]
[1764572635010,0.23151658,86387.0,86385.0,0.23252075]
[1764572635558,0.24309149,86388.0,86385.0,0.23252075]
[1764572635947,0.24309149,86388.0,86386.0,0.23151849]
[1764572636187,0.24309149,86388.0,86385.0,0.24409728]
[1764572636391,0.323,86391.0,86388.0,0.24308931]
[1764572636625,0.323,86391.0,86390.0,0.23150827]
[1764572637061,0.63745785,86391.0,86386.0,0.01157594]
[1764572637264,0.2315111,86389.0,86386.0,0.24309446]
[1764572639231,0.24308598,86390.0,86387.0,0.23151568]
[1764572639631,0.23151101,86389.0,86387.0,0.23151568]
[1764572640399,0.24308598,86390.0,86387.0,0.23151568]
[1764572640601,0.24308598,86390.0,86387.0,0.24309149]
[1764572640794,0.23150843,86390.0,86388.0,0.23151161]
[1764572641467,0.23147884,86401.0,86393.0,0.23150023]
[1764572641658,0.323,86404.0,86399.0,0.0115742]
[1764572641858,0.02106,86405.0,86402.0,0.0115738]
[1764572642036,0.02106,86405.0,86404.0,0.23147076]
[1764572642245,0.00732,86408.0,86405.0,0.0115734]
[1764572642442,0.2389007,86408.0,86403.0,0.01157367]
[1764572642637,0.00743821,86408.0,86407.0,0.23146272]
[1764572643383,0.00011821,86408.0,86407.0,0.30412272]
[1764572644346,0.00011821,86408.0,86407.0,0.30612272]
[1764572644572,0.00011821,86408.0,86407.0,0.26037272]
[1764572644793,0.00011821,86408.0,86407.0,0.30412272]
[1764572644996,0.00011821,86408.0,86407.0,0.30812272]
[1764572645530,0.242974,86429.0,86425.0,0.24298403]
[1764572645735,0.24317134,86430.0,86425.0,0.24298403]
[1764572645958,0.01157019,86429.0,86425.0,0.24298403]
[1764572646155,0.01157032,86428.0,86424.0,0.0202]
[1764572646359,0.01157112,86422.0,86413.0,0.01157233]
[1764572646557,0.01157059,86426.0,86419.0,0.01157152]
[1764572646755,0.01157059,86426.0,86422.0,0.01157112]
[1764572646962,0.24298286,86426.0,86422.0,0.2429936]
[1764572647347,0.23141459,86425.0,86421.0,0.01157126]
[1764572647774,0.23141459,86425.0,86418.0,0.03191166]
[1764572647775,0.01157099,86423.0,86418.0,0.03191166]
[1764572648038,0.23141719,86424.0,86420.0,0.01157139]
[1764572648278,0.24298804,86424.0,86420.0,0.01157139]
[1764572648683,0.23142062,86423.0,86420.0,0.01157139]
[1764572648912,0.23142062,86423.0,86420.0,0.24299762]
[1764572649486,0.28456161,86423.0,86420.0,0.24299762]
[1764572649692,0.28456161,86423.0,86413.0,0.01157233]
[1764572649693,0.23142809,86420.0,86413.0,0.01157233]
[1764572649893,0.23143088,86419.0,86413.0,0.01157233]
[1764572650098,0.24302495,86411.0,86406.0,0.24303628]
[1764572650279,0.02951,86413.0,86410.0,0.01157273]
[1764572650477,0.01187,86414.0,86410.0,0.01157273]
[1764572650794,0.01187,86414.0,86410.0,0.24302615]
[1764572650980,0.01187,86414.0,86413.0,0.001]
[1764572651180,0.01187,86414.0,86412.0,0.23144923]
[1764572651378,0.01187,86414.0,86413.0,0.23144665]
[1764572652668,0.01187,86414.0,86412.0,0.23144923]
[1764572653254,0.01187,86414.0,86413.0,0.003]
[1764572653400,0.01187,86414.0,86412.0,0.23144923]
[1764572653756,0.01187,86414.0,86413.0,0.23144665]
[1764572654058,0.01187,86414.0,86412.0,0.23144923]
[1764572654403,0.24331397,86414.0,86413.0,0.003]
[1764572654624,0.01187,86414.0,86413.0,0.23444665]
[1764572654960,0.24299959,86420.0,86416.0,0.24300888]
[1764572655187,0.01224,86422.0,86420.0,0.23142744]
[1764572655389,0.01212463,86426.0,86424.0,0.23141719]
[1764572655595,0.01212463,86426.0,86423.0,0.24299083]
[1764572655873,0.01212463,86426.0,86418.0,0.01157166]
[1764572655874,0.01157112,86422.0,86409.0,0.04375]
[1764572656072,0.01157112,86422.0,86411.0,0.2314519]
[1764572656073,0.23143604,86417.0,86411.0,0.2314519]
[1764572656231,0.24301176,86416.0,86410.0,0.26336698]
[1764572656431,0.23144209,86415.0,86411.0,0.23145191]
[1764572656631,0.23144209,86415.0,86400.0,0.24305534]
[1764572656632,0.01157313,86407.0,86400.0,0.24305534]
[1764572656946,0.0115746,86396.0,86389.0,0.03191554]
[1764572657114,0.24305569,86400.0,86395.0,0.01157474]
[1764572657322,0.01157407,86400.0,86394.0,0.24307159]
[1764572657516,0.01157407,86400.0,86396.0,0.0115746]
[1764572657731,0.24305654,86400.0,86395.0,0.24306711]
[1764572657931,0.24305984,86399.0,86395.0,0.24306711]
[1764572658153,0.01157434,86398.0,86392.0,0.24307749]
[1764572658357,0.0115742,86399.0,86388.0,0.01157568]
[1764572658358,0.03876501,86393.0,86388.0,0.01157568]
[1764572658563,0.01157501,86393.0,86390.0,0.01157541]
[1764572658837,0.23150553,86392.0,86389.0,0.23151063]
[1764572659213,0.23150587,86391.0,86389.0,0.003]
[1764572659389,0.2430756,86393.0,86390.0,0.23150736]
[1764572659616,0.06252658,86436.0,86391.0,0.23150416]
[1764572659617,0.28729914,86399.0,86391.0,0.23150416]
[1764572659738,0.24307254,86394.0,86391.0,0.01157527]
[1764572660178,0.24307254,86394.0,86390.0,0.2430835]
[1764572660382,0.23150338,86392.0,86390.0,0.001]
[1764572660616,0.01157501,86393.0,86390.0,0.23250709]
[1764572660804,0.23150314,86392.0,86390.0,0.001]
[1764572661043,0.23150812,86391.0,86389.0,0.004]
[1764572661243,0.23150812,86391.0,86390.0,0.001]
[1764572661882,0.23150812,86391.0,86389.0,0.004]
[1764572662086,0.23150812,86391.0,86390.0,0.001]
[1764572662419,0.23150812,86391.0,86390.0,0.005]
[1764572662855,0.23150812,86391.0,86390.0,0.001]
[1764572663060,0.40016793,86391.0,86390.0,0.001]
[1764572663230,0.23150827,86390.0,86389.0,0.004]
[1764572663443,0.31750827,86390.0,86389.0,0.004]
[1764572663792,0.2431248,86376.0,86371.0,0.01157796]
[1764572664002,0.01157728,86376.0,86371.0,0.01157796]
[1764572664201,0.03170688,86379.0,86374.0,0.23155095]
[1764572664407,0.26324475,86379.0,86376.0,0.2315454]
[1764572664560,0.01157661,86381.0,86375.0,0.23154783]
[1764572664744,0.01157715,86377.0,86373.0,0.24312965]
[1764572664944,0.01167279,86377.0,86373.0,0.24312965]
[1764572665217,0.23164029,86377.0,86373.0,0.24312965]
[1764572665412,9.564e-05,86377.0,86375.0,0.23154738]
[1764572665702,9.564e-05,86377.0,86376.0,0.23154579]
[1764572666524,9.564e-05,86377.0,86376.0,0.29947579]
[1764572666897,9.564e-05,86377.0,86376.0,0.30247579]
[1764572668432,9.564e-05,86377.0,86376.0,0.29947579]